[Event "FIDE WSCC 50 2022"]
[Site "Assisi"]
[Date "2022.11.20"]
[Round "6.15"]
[White "Mantovani, Renzo"]
[Black "Arkell, Keith C"]
[Result "1/2-1/2"]
[ECO "A46"]
[WhiteElo "2246"]
[BlackElo "2408"]
[Annotator "TA"]
[PlyCount "229"]
[EventDate "2022.11.14"]
[EventType "swiss"]
[EventCountry "ITA"]
[SourceTitle "playchess.com"]
[Source "ChessBase"]
[SourceQuality "1"]
[TimeControl "40/5400+30:1800+30"]

{[%evp 9,229,19,29,19,29,8,20,22,15,25,18,19,14,11,12,12,8,0,3,0,0,0,0,-19,-20,-25,-19,-29,-36,-36,-36,-36,-35,-61,-47,-48,-50,-58,-26,-31,-35,-36,-29,-34,-41,-46,-46,-82,-70,-72,-75,-116,-97,-95,-91,-131,-110,-111,-43,-43,-43,-43,-43,-43,-43,-44,-21,-22,-29,-32,0,-247,-204,-188,0,0,0,0,0,-93,-93,-93,-62,-197,-12,-179,-189,-189,-175,-175,-175,-456,-448,-392,-370,-469,-469,-361,-134,-141,-141,-141,-49,-49,-34,-49,-8,-8,-8,-8,-8,-8,0,0,0,0,0,0,0,0,0,0,0,0,0,0,0,0,0,0,0,0,0,0,0,0,0,0,0,0,0,0,0,0,0,0,0,0,0,0,0,0,0,0,0,0,0,0,0,0,0,-8,-8,-8,-8,-8,0,0,0,0,0,0,0,0,0,0,0,-8,-8,-8,-8,-8,0,0,0,0,0,0,0,0,0,0,0,0,0,0,0,0,0,0,0,0,0,0,0,0,0,0,0,0,0,0,0,0,0,0,0,0,0,0,0,0]} 1. d4 {[%emt 0:00:50]} Nf6 {[%emt 0:00:07]} 2. Nf3 {[%emt 0:00:11]} e6 {[%emt 0:00:04]} 3. Bf4 {[%emt 0:00:28]} c5 {[%emt 0:00:05]} 4. e3 {[%emt 0:00:21]} cxd4 {[%emt 0:00:06]} 5. exd4 {[%emt 0:00:13]} Be7 {[%emt 0:00:08]} 6. c3 {[%emt 0:00:23] A46: 1 d4 Nf6 2 Nf3 e6: Torre, London and Colle Systems.} b6 {[%emt 0:00:07]} 7. Nbd2 {[%emt 0:00:17]} O-O {[%emt 0:00:08]} 8. h3 {[%emt 0:02:15] has lost popularity (8.Bd3).} Ba6 {[%emt 0:00:32]} 9. Bxa6 {[%emt 0:00:21]} Nxa6 {[%emt 0:00:03]} 10. O-O {[%emt 0:01:12]} Nc7 {[%emt 0:00:05]} 11. a4 {[%emt 0:01:06]} d6 {[%emt 0:00:15]} 12. Re1 {[%emt 0:00:50]} a6 {[%emt 0:00:12]} 13. Qe2 {[%emt 0:02:32] [#]} b5 $146 {[%emt 0:00:41]} ({Predecessor:} 13... h6 14. Ne4 Nxe4 15. Qxe4 Nd5 16. Bd2 b5 17. axb5 axb5 18. b3 Qc7 19. Qd3 Qb7 {½-½ (33) Torkkola,H (2209)-Lim,Z (2290) Krakow 2022}) 14. Bh2 {[%emt 0:02:43]} Qd7 {[%emt 0:00:12]} 15. axb5 {[%emt 0:01:32]} axb5 {[%emt 0:00:05]} 16. Nf1 {[%emt 0:02:35]} Qc6 {[%emt 0:01:10]} 17. N3d2 {[%emt 0:00:28]} Ncd5 {[%emt 0:03:06]} 18. Ne4 {[%emt 0:02:40]} Nxe4 {[%emt 0:12:13]} 19. Qxe4 {[%emt 0:00:18]} Rxa1 {[%emt 0:00:44]} 20. Rxa1 {[%emt 0:00:24]} b4 {[%emt 0:21:15]} 21. Rc1 {[%emt 0:11:11]} bxc3 {[%emt 0:03:35]} 22. bxc3 {[%emt 0:01:06]} Rc8 {[%emt 0:01:05]} 23. c4 {[%emt 0:08:09]} Nb6 {[%emt 0:16:40]} 24. Qxc6 {[%emt 0:06:01]} Rxc6 {[%emt 0:00:04]} 25. Ne3 {[%emt 0:00:19]} Bf6 {[%emt 0:17:15]} 26. d5 {[%emt 0:39:54]} exd5 {[%emt 0:01:35]} 27. Re1 $1 {[%emt 0:00:07]} d4 {[%emt 0:06:12]} 28. Nf5 {[%emt 0:02:55][%cal Re1e8]} h5 {[%emt 0:03:11]} 29. Nxd6 {[%emt 0:01:30]} Nxc4 {[%emt 0:00:56]} 30. Ne4 {[%emt 0:11:40]} Re6 {[%emt 0:08:56] Threatens to win with ...Bd8.} 31. Nxf6+ {[%emt 0:00:36]} gxf6 $17 {[%emt 0:01:50][%cal Re6e1][%mdl 4096] Endgame KRB-KRN} ({Much weaker is} 31... Rxf6 $6 32. Rd1 $11) 32. Rd1 {[%emt 0:00:37]} Nb2 {[%emt 0:01:18]} 33. Ra1 {[%emt 0:00:39]} Re2 {[%emt 0:01:15]} (33... d3 $17 34. Bf4 Re4) 34. Bf4 $15 {[%emt 0:00:07]} Nd3 {[%emt 0:00:48][%csl LRf2,LRf4]} 35. Bg3 {[%emt 0:00:20]} Nc5 {[%emt 0:01:00] Inhibits Ra4.} 36. Ra8+ {[%emt 0:00:58]} Kg7 {[%emt 0:00:02] White must now prevent ...d3.} 37. Rd8 {[%emt 0:00:01]} d3 {[%emt 0:00:11] Hoping for ...d2.} 38. f3 $1 {[%emt 0:00:56]} Rc2 {[%emt 0:00:43] And now ...d2 would win.} 39. Be1 {[%emt 0:00:35] Prevents d2.} h4 {[%emt 0:01:06]} 40. Bxh4 $2 {[%emt 0:00:39]} (40. Kf1 $11 {and White stays safe.}) 40... d2 $19 {[%emt 0:00:08]} 41. Kf1 {[%emt 0:30:25]} Nb3 $2 {[%emt 0:30:27]} (41... Na4 $1 $19 {[%cal Ra4c3]} 42. Rd6 Rc1+ 43. Ke2 d1=Q+ 44. Rxd1 Nc3+ 45. Kd2 Rxd1+ 46. Kxc3 Rg1) 42. Ke2 $1 $11 {[%emt 0:00:00]} Rc1 {[%emt 0:00:00]} 43. Bf2 {[%emt 0:00:00]} f5 {[%emt 0:00:00][%cal Bf6f5,Bf5f4][%mdl 32]} 44. g4 {[%emt 0:00:00]} (44. f4 $11 {keeps the balance.}) 44... f4 $17 {[%emt 0:00:00]} 45. h4 {[%emt 0:00:00]} Kf6 {[%emt 0:00:00]} 46. h5 {[%emt 0:00:00]} (46. Rxd2 $15 Nxd2 47. Kxd2) 46... Ke7 $2 {[%emt 0:00:00]} (46... Rh1 $19 47. Rd6+ Ke5) 47. Bh4+ $2 {[%emt 0:00:00] [#]} (47. Rxd2 $11 {and White is okay.} Nxd2 48. Kxd2) 47... f6 $1 $19 {[%emt 0:00:00]} 48. Rd5 {[%emt 0:00:00]} Ra1 {[%emt 0:00:00]} 49. h6 {[%emt 0:00:00]} Rh1 {[%emt 0:00:00]} 50. h7 $2 {[%emt 0:00:00]} (50. Bf2) 50... d1=Q+ {[%emt 0:00:00]} (50... Rxh4 51. Rh5 Rxh5 52. gxh5 Nd4+ 53. Kd1 Nxf3 54. h8=Q $18) 51. Rxd1 {[%emt 0:00:00]} Rxh4 {[%emt 0:00:00] KRN-KR} 52. Kd3 {[%emt 0:02:22] [#]} Nc5+ $1 {[%emt 0:00:00]} ({Don't go for} 52... Rxh7 $2 53. Ke4 $19) 53. Kc4 {[%emt 0:00:47]} Nd7 {[%emt 0:00:00]} (53... Ne6 $19 {has better winning chances.} 54. Rb1 Kf7) 54. Kd5 $17 {[%emt 0:01:00]} Rxh7 {[%emt 0:05:36]} 55. Ke4 {[%emt 0:00:10]} Rh2 {[%emt 0:01:20]} ({Better is} 55... Ke6 $17 {aiming for ...Ne5.} 56. Kxf4 Rg7 57. Re1+ Kf7) 56. Kxf4 $15 {[%emt 0:00:23]} Rg2 {[%emt 0:00:21]} 57. Ra1 {[%emt 0:00:40]} Ne5 {[%emt 0:00:20]} 58. Ra7+ {[%emt 0:00:26] The position is equal.} Ke6 {[%emt 0:00:04] Black wants to play ...Nd3+.} 59. Ra6+ {[%emt 0:00:18]} Kf7 {[%emt 0:00:02] Threatening ...Kg6.} 60. Kf5 {[%emt 0:00:17]} Nd7 {[%emt 0:00:11]} 61. Rd6 {[%emt 0:01:35]} Ke7 {[%emt 0:00:09]} 62. Re6+ {[%emt 0:00:05]} Kd8 {[%emt 0:00:08]} 63. f4 {[%emt 0:00:23]} Ra2 {[%emt 0:00:21]} 64. Re1 {[%emt 0:01:10]} Ra5+ {[%emt 0:00:28]} 65. Kg6 {[%emt 0:00:12]} Ra4 {[%emt 0:00:49]} 66. g5 {[%emt 0:00:34]} Rxf4 {[%emt 0:00:05] ...Rg4 is the strong threat.} 67. gxf6 {[%emt 0:00:10]} Rxf6+ {[%emt 0:00:04]} 68. Kg5 {[%emt 0:00:10]} Rf2 {[%emt 0:00:09]} 69. Kg4 {[%emt 0:00:20]} Nf6+ {[%emt 0:00:47]} 70. Kg5 {[%emt 0:00:10]} Kd7 {[%emt 0:00:07]} 71. Kg6 {[%emt 0:00:11]} Nd5 {[%emt 0:00:06]} 72. Kg5 {[%emt 0:00:18]} Kd6 {[%emt 0:00:19]} 73. Kg4 {[%emt 0:00:27]} Ne7 {[%emt 0:00:30]} 74. Kg5 {[%emt 0:00:17]} Nc6 {[%emt 0:00:08]} 75. Kg4 {[%emt 0:00:15]} Ne5+ {[%emt 0:00:05]} 76. Kg3 {[%emt 0:00:19]} Rf3+ {[%emt 0:00:05]} 77. Kg2 {[%emt 0:00:15]} Ra3 {[%emt 0:00:09]} 78. Rb1 {[%emt 0:00:21]} Kd5 {[%emt 0:00:26]} 79. Rb8 {[%emt 0:00:24]} Kd4 {[%emt 0:00:27]} 80. Re8 {[%emt 0:00:26]} Ke4 {[%emt 0:00:12]} 81. Rb8 {[%emt 0:00:14]} Rc3 {[%emt 0:00:29]} 82. Rb4+ {[%emt 0:00:18]} Nc4 {[%emt 0:00:11]} 83. Ra4 {[%emt 0:00:19]} Kf4 {[%emt 0:00:05]} 84. Rb4 {[%emt 0:01:34]} Kg4 {[%emt 0:00:09]} 85. Kf2 {[%emt 0:00:12]} Rc2+ {[%emt 0:00:07]} 86. Kg1 $1 {[%emt 0:01:36]} Kf3 {[%emt 0:00:25]} 87. Rb8 {[%emt 0:01:34]} Nd6 {[%emt 0:04:03]} 88. Rb3+ {[%emt 0:01:02]} Kf4 {[%emt 0:00:07]} 89. Kf1 {[%emt 0:01:36]} Ne4 {[%emt 0:00:05]} 90. Ke1 {[%emt 0:00:11]} Nc3 {[%emt 0:00:04]} 91. Rb8 {[%emt 0:00:17]} Ke3 {[%emt 0:00:06][%cal Rc2c1]} 92. Re8+ {[%emt 0:00:11]} Ne4 {[%emt 0:00:04][%cal Rc2c1]} 93. Kd1 {[%emt 0:00:14] Prevents Rc1+.} Rc7 {[%emt 0:00:07]} 94. Re6 {[%emt 0:00:23]} Kd3 {[%emt 0:08:25]} 95. Re8 {[%emt 0:00:25]} Rd7 {[%emt 0:00:00]} 96. Ke1 {[%emt 0:01:19]} Ra7 {[%emt 0:00:00][%cal Ra7a1]} 97. Kf1 {[%emt 0:00:52]} Ke3 {[%emt 0:00:00]} 98. Kg2 {[%emt 0:00:10]} Rg7+ {[%emt 0:00:00]} 99. Kh3 {[%emt 0:00:35]} Rg6 {[%emt 0:00:00]} 100. Rf8 {[%emt 0:00:32]} Nf6 {[%emt 0:00:00]} 101. Ra8 {[%emt 0:00:23]} Nd5 {[%emt 0:00:00]} 102. Kh4 {[%emt 0:00:30]} Kf3 {[%emt 0:00:00]} 103. Ra3+ {[%emt 0:00:34]} Ne3 {[%emt 0:00:00]} 104. Kh5 {[%emt 0:00:12]} Rg8 {[%emt 0:00:00]} 105. Ra4 {[%emt 0:00:30]} Nd5 {[%emt 0:00:00]} 106. Kh6 {[%emt 0:00:17]} Nf4 {[%emt 0:00:00]} 107. Kh7 {[%emt 0:00:25]} Rg4 {[%emt 0:00:00]} 108. Ra8 {[%emt 0:00:52]} Ke4 {[%emt 0:00:00]} 109. Ra5 {[%emt 0:00:23]} Rg3 {[%emt 0:00:00]} 110. Kh6 {[%emt 0:00:36]} Nd5 {[%emt 0:00:01]} 111. Ra1 {[%emt 0:00:42]} Kf5 {[%emt 0:00:16] ( -> ...Rg6+)} 112. Ra5 {[%emt 0:00:23]} Kf6 {[%emt 0:01:03][%cal Rg3h3]} 113. Rxd5 {[%emt 0:00:10]} Rh3+ {[%emt 0:00:01]} 114. Rh5 {[%emt 0:00:10]} Rxh5+ {[%emt 0:00:02]} 115. Kxh5 {[%emt 0:03:30] White happily takes the draw.  Weighted Error Value: White=0.30/Black=0.22 (precise)} 1/2-1/2

[Event "FIDE WSCC 50 2022"]
[Site "Assisi"]
[Date "2022.11.22"]
[Round "7.1"]
[White "Lima, Darcy"]
[Black "Holzke, Frank"]
[Result "1/2-1/2"]
[ECO "E15"]
[WhiteElo "2415"]
[BlackElo "2476"]
[Annotator "TA"]
[PlyCount "47"]
[EventDate "2022.11.14"]
[EventType "swiss"]
[EventCountry "ITA"]
[SourceTitle "playchess.com"]
[Source "ChessBase"]
[SourceQuality "1"]
[TimeControl "40/5400+30:1800+30"]

{[%evp 20,47,19,16,19,-3,-3,-3,0,-14,-16,-1,26,22,33,19,6,22,28,0,0,0,0,0,2,0,0,0,0,0]} 1. d4 {[%emt 0:00:21]} Nf6 {[%emt 0:00:14]} 2. c4 {[%emt 0:00:14]} e6 {[%emt 0:00:13]} 3. Nf3 {[%emt 0:00:26]} b6 {[%emt 0:00:20]} 4. g3 {[%emt 0:02:00]} Ba6 {[%emt 0:00:15]} 5. b3 {[%emt 0:03:11]} Bb4+ {[%emt 0:00:16]} 6. Bd2 {[%emt 0:00:09]} Be7 {[%emt 0:00:08]} 7. Bg2 {[%emt 0:00:35]} c6 {[%emt 0:00:18]} 8. O-O {[%emt 0:03:12]} d5 {[%emt 0:00:29]} 9. Bc3 {[%emt 0:01:52]} O-O {[%emt 0:01:49]} 10. Nbd2 {[%emt 0:07:01]} Nbd7 {[%emt 0:00:57]} 11. Re1 {[%emt 0:07:15]} Bb7 {[%emt 0:03:05] is the legacy move (11...c5). E15: Queen's Indian: 4 g3 sidelines, 4 g3 Ba6 and 4 g3 Bb7 early deviations.} 12. b4 {[%emt 1:10:14]} dxc4 {[%emt 0:01:38]} 13. Nxc4 {[%emt 0:00:00]} Ne4 {[%emt 0:04:16]} 14. Qc2 {[%emt 0:00:00]} Nxc3 {[%emt 0:01:46]} 15. Qxc3 {[%emt 0:00:00] [#]} Nf6 $146 {[%emt 0:00:45]} ({Predecessor:} 15... c5 16. bxc5 bxc5 17. Red1 cxd4 18. Qxd4 Nf6 19. Qxd8 Rfxd8 20. Nfe5 Bxg2 21. Kxg2 Rac8 22. Rab1 Rc7 {½-½ (81) Salov,V (2655)-Adams,M (2620) France 1992}) 16. Rab1 {[%emt 0:00:00]} c5 {[%emt 1:22:01]} 17. bxc5 {[%emt 0:02:30]} Be4 $1 {[%emt 0:00:30]} 18. Rbd1 {[%emt 0:00:30]} Qc7 {[%emt 0:00:30]} 19. Nfe5 {[%emt 0:00:30]} Bxg2 {[%emt 0:00:30] The position is equal.} 20. Kxg2 {[%emt 0:00:30]} bxc5 {[%emt 0:00:30]} 21. Qf3 {[%emt 0:00:30]} Rac8 {[%emt 0:00:30]} 22. e4 {[%emt 0:00:30]} cxd4 {[%emt 0:00:30]} 23. Rxd4 {[%emt 0:00:30]} Rfd8 {[%emt 0:00:30]} 24. Red1 {[%emt 0:00:30] A balanced but interesting game.  Weighted Error Value: White=0.08 (flawless) /Black=0.03 (flawless)} 1/2-1/2

[Event "FIDE WSCC 50 2022"]
[Site "Assisi"]
[Date "2022.11.22"]
[Round "7.2"]
[White "Pavlovic, Milos"]
[Black "Morovic Fernandez, Ivan"]
[Result "0-1"]
[ECO "D37"]
[WhiteElo "2447"]
[BlackElo "2480"]
[Annotator "TA"]
[PlyCount "102"]
[EventDate "2022.11.14"]
[EventType "swiss"]
[EventCountry "ITA"]
[SourceTitle "playchess.com"]
[Source "ChessBase"]
[SourceQuality "1"]
[TimeControl "40/5400+30:1800+30"]

{[%evp 16,102,15,15,15,15,22,24,18,19,23,18,19,8,13,12,44,30,39,30,66,12,13,8,15,10,66,11,18,18,18,16,16,17,17,4,18,20,38,0,20,9,9,0,0,0,0,-15,-17,-10,-41,-30,-19,-49,-45,-69,-53,-53,-53,-70,-70,-94,-62,-127,-96,-147,-137,-137,-124,-491,-497,-898,-117,-136,-107,-106,-122,-122,-129,-129,-125,-170,-164,-273,-196,-854,-845,-1081,-1047]} 1. d4 {[%emt 0:00:06]} d5 {[%emt 0:00:16]} 2. c4 {[%emt 0:02:20]} e6 {[%emt 0:00:17]} 3. Nc3 {[%emt 0:01:01]} Be7 {[%emt 0:01:32]} 4. Nf3 {[%emt 0:01:10]} Nf6 {[%emt 0:00:20]} 5. Bf4 {[%emt 0:01:04]} O-O {[%emt 0:01:10]} 6. e3 {[%emt 0:00:05]} b6 {[%emt 0:00:38]} 7. Be2 {[%emt 0:05:07]} dxc4 {[%emt 0:07:08]} 8. Bxc4 {[%emt 0:00:10]} Bb7 {[%emt 0:00:04]} 9. O-O {[%emt 0:00:19]} Nbd7 {[%emt 0:00:29] D37: Queen's Gambit Declined: 5 Bf4.} 10. Qe2 {[%emt 0:14:56]} a6 {[%emt 0:00:21]} 11. a4 {[%emt 0:08:07]} c5 {[%emt 0:04:36] White has an edge.} 12. Rfd1 {[%emt 0:06:40]} cxd4 {[%emt 0:02:43]} 13. exd4 {[%emt 0:00:16]} Re8 {[%emt 0:01:07]} 14. Ne5 {[%emt 0:15:52][%cal Oe5f7]} Nf8 {[%emt 0:05:57]} 15. Rac1 {[%emt 0:04:44] [#]} Nd5 $146 {[%emt 0:26:50]} ({Predecessor:} 15... Ng6 16. Bg3 Bb4 17. Bd3 Bf8 18. Nc4 Be7 19. Ne5 Bf8 {½-½ (19) Kravchenko,D (2113)-Kolanek,R (2139) LSS email 2016}) 16. Nxd5 {[%emt 0:04:47]} exd5 {[%emt 0:00:03]} 17. Bd3 {[%emt 0:00:07]} Ng6 {[%emt 0:08:21] [#]} 18. Bxg6 {[%emt 0:17:59]} (18. Qh5 $1 $14 Bf6 19. Re1 $1) 18... hxg6 $11 {[%emt 0:02:05]} 19. Qf3 {[%emt 0:00:05][%cal Oe5f7]} Bf6 {[%emt 0:02:09]} 20. h4 {[%emt 0:04:36]} Qe7 {[%emt 0:14:53] [#]} ({Black should play} 20... Bxe5 $11 21. Bxe5 Rc8) 21. h5 {[%emt 0:03:53]} (21. Nxg6 $1 $14 Qe2 (21... Qe6 22. Ne5) 22. Ne5 Qxf3 23. Nxf3) 21... gxh5 {[%emt 0:02:08]} 22. Qxh5 {[%emt 0:00:03] Strongly threatening Rd3.} Rac8 {[%emt 0:02:45]} 23. Rc3 {[%emt 0:01:38]} Rxc3 {[%emt 0:02:43]} 24. bxc3 {[%emt 0:00:02]} g6 {[%emt 0:02:23]} 25. Qf3 {[%emt 0:00:06]} Bg7 {[%emt 0:01:31]} 26. Rb1 {[%emt 0:01:35]} Qf6 {[%emt 0:02:18]} 27. Ng4 {[%emt 0:02:53]} Qe6 {[%emt 0:03:02]} 28. Be5 {[%emt 0:01:31]} Bc8 $1 {[%emt 0:01:06]} 29. Nf6+ {[%emt 0:01:33]} Bxf6 {[%emt 0:00:29]} 30. Bxf6 {[%emt 0:00:28]} Qc6 {[%emt 0:01:55] ...Bf5 is the strong threat.} 31. Be5 {[%emt 0:01:41]} Bf5 {[%emt 0:00:18]} 32. Ra1 {[%emt 0:01:36][%cal Oc3c4]} f6 {[%emt 0:00:29]} 33. Bf4 {[%emt 0:00:00]} Re4 {[%emt 0:00:33]} 34. Qg3 {[%emt 0:00:00]} Kf7 {[%emt 0:01:03]} 35. Bb8 {[%emt 0:00:45]} Re7 {[%emt 0:01:14]} 36. Bd6 {[%emt 0:00:08]} Re8 {[%emt 0:00:28]} 37. Bf4 {[%emt 0:00:42]} g5 {[%emt 0:00:17]} 38. Be3 {[%emt 0:00:11]} Kg6 {[%emt 0:00:33]} 39. Qf3 {[%emt 0:00:56]} (39. Bd2 $15) 39... Re4 {[%emt 0:01:27][%cal Be8e4,Be4h4,Bh4h8][%mdl 32]} 40. Qd1 {[%emt 0:00:33]} ({Better is} 40. Qg3) 40... Rh4 {[%emt 0:00:41]} 41. f3 {[%emt 0:30:39]} Qc7 {[%emt 0:07:16] Hoping for ...g4.} 42. Bf2 $2 {[%emt 0:00:00][%mdl 8192]} (42. Qd2 $17 {is tougher.}) 42... Rh8 $19 {[%emt 0:07:33]} 43. g4 {[%emt 0:00:00] [#]} (43. Qd2 $142 g4 44. Re1) 43... Bd7 $2 $40 {[%emt 0:06:39][%mdl 128] Black has strong attack.} (43... Be4 $1 $19 {[%mdl 512] is more deadly. ( -> ...Qh2+)} 44. fxe4 Qh2+ 45. Kf1 Qh3+ 46. Ke2 dxe4) 44. Qc2+ $17 {[%emt 0:00:00]} Kf7 {[%emt 0:01:30] Threatens to win with ...Qh2+. Really sharp!} 45. Be1 {[%emt 0:00:00]} Qf4 {[%emt 0:04:05]} 46. Qg2 {[%emt 0:00:00] Against Rh3} Qe3+ {[%emt 0:00:22]} 47. Qf2 {[%emt 0:00:00] [#]} Qd3 {[%emt 0:00:02] Black has more active pieces.} 48. Qg3 {[%emt 0:00:00]} Kg6 {[%emt 0:02:17]} ({And not} 48... Qe3+ 49. Kg2 $15) 49. Ra2 {[%emt 0:03:13]} (49. Qf2 $142) 49... Re8 {[%emt 0:00:44]} 50. Qf2 $2 {[%emt 0:01:03]} (50. Ra1) 50... Qd1 $19 {[%emt 0:02:06][%csl LRa4,LRe1]} 51. Kf1 {[%emt 0:00:06]} Bxa4 {[%emt 0:00:22] Weighted Error Value: White=0.60/Black=0.24 (precise)} 0-1

[Event "FIDE WSCC 50 2022"]
[Site "Assisi"]
[Date "2022.11.22"]
[Round "7.3"]
[White "Sturua, Zurab"]
[Black "Antonio, Rogelio Jr"]
[Result "1-0"]
[ECO "E11"]
[WhiteElo "2522"]
[BlackElo "2397"]
[Annotator "TA"]
[PlyCount "84"]
[EventDate "2022.11.14"]
[EventType "swiss"]
[EventCountry "ITA"]
[SourceTitle "playchess.com"]
[Source "ChessBase"]
[SourceQuality "1"]
[TimeControl "40/5400+30:1800+30"]

{[%evp 16,84,33,28,30,21,38,32,47,8,27,29,29,39,24,49,71,61,77,51,50,36,41,48,56,25,73,74,74,79,95,95,95,95,95,96,98,94,94,101,104,99,160,143,219,180,342,350,339,336,307,322,378,377,377,360,369,329,381,352,373,357,348,338,285,275,381,352,496,398,324]} 1. d4 {[%emt 0:00:12]} Nf6 {[%emt 0:00:14]} 2. Nf3 {[%emt 0:00:21]} e6 {[%emt 0:00:09]} 3. c4 {[%emt 0:00:13]} Bb4+ {[%emt 0:00:10]} 4. Bd2 {[%emt 0:00:17]} Bxd2+ {[%emt 0:04:26]} 5. Qxd2 {[%emt 0:00:33]} d5 {[%emt 0:00:05]} 6. g3 {[%emt 0:01:43]} O-O {[%emt 0:02:23]} 7. Bg2 {[%emt 0:00:19]} Qe7 {[%emt 0:05:09]} 8. O-O {[%emt 0:00:29]} Rd8 {[%emt 0:01:29]} 9. Rc1 {[%emt 0:02:07] has lost popularity (9.Qc2).} c6 {[%emt 0:05:58] E11: Bogo-Indian.} (9... Nc6 10. cxd5 exd5 11. Nc3 Bg4 12. e3 Qe6 13. b4 Qf5 14. Ne1 Bh3 15. Bh1 Ne7 16. Nd3 Ng6 17. f3 Qg5 {½-½ (35) Sturua,Z (2536)-Antonio,R (2431) Acqui Terme 2017}) 10. Qf4 {[%emt 0:00:50]} Nbd7 {[%emt 0:03:08]} 11. Nbd2 {[%emt 0:01:32] [#]} h6 $146 {[%emt 0:05:39] White is slightly better.} ({Predecessor:} 11... Nf8 12. e4 Bd7 13. e5 Ne8 14. c5 a5 15. Qe3 Rdb8 16. Ne1 Nc7 17. Nd3 Be8 {½-½ (46) Pinter,J (2562)-Bischoff,K (2564) Austria 2003}) 12. a3 {[%emt 0:10:46]} a5 {[%emt 0:06:08]} 13. e4 {[%emt 0:04:59]} dxe4 {[%emt 0:00:26]} 14. Nxe4 {[%emt 0:00:14]} Nxe4 {[%emt 0:00:09]} 15. Qxe4 {[%emt 0:00:07]} Nf6 {[%emt 0:00:08]} 16. Qe3 {[%emt 0:10:58]} Qc7 {[%emt 0:00:53]} 17. c5 {[%emt 0:15:25]} Nd5 {[%emt 0:00:09]} 18. Qe5 {[%emt 0:02:57]} (18. Qe4 {looks sharper.} b5 19. Ne5 Rb8 20. Qf3) 18... Qxe5 {[%emt 0:04:36]} 19. dxe5 {[%emt 0:01:34]} a4 {[%emt 0:00:37]} 20. Nd2 {[%emt 0:01:23][%cal Bf3d2,Bd2e4,Be4d6][%mdl 32]} Ne3 {[%emt 0:01:20]} 21. Ne4 $16 {[%emt 0:01:52]} Nxg2 {[%emt 0:00:11]} 22. Nd6 {[%emt 0:03:01]} Rb8 {[%emt 0:00:09][%cal Ob7b6]} 23. Kxg2 {[%emt 0:03:45]} b6 {[%emt 0:00:19] [#]} 24. Rc4 $1 {[%emt 0:00:44]} bxc5 {[%emt 0:00:30]} 25. Rxa4 {[%emt 0:02:02]} f6 {[%emt 0:00:15]} (25... Rxb2 $2 26. Ra8 $18) 26. Re1 {[%emt 0:05:21]} fxe5 {[%emt 0:00:08]} 27. Nc4 {[%emt 0:00:53] White is much more active.} Rd4 {[%emt 0:04:04]} 28. Rxe5 {[%emt 0:02:06]} Kh7 {[%emt 0:00:59]} ({Black should try} 28... Rb5) 29. Rxc5 {[%emt 0:03:02]} Rb5 {[%emt 0:02:23]} (29... e5 $16) 30. Nb6 {[%emt 0:01:04]} (30. Rxc6 $2 Bb7 31. Na5 Bxc6+ 32. Nxc6 Rxa4 $19) 30... Rd2 $2 {[%emt 0:00:07] [#]} (30... Rxc5 {keeps fighting.} 31. Rxd4 Ba6) 31. Rxb5 $18 {[%emt 0:01:10]} ({Avoid the trap} 31. Rxc6 $2 Bb7 32. Rb4 Bxc6+ $19) 31... cxb5 {[%emt 0:00:02][%mdl 4096] Endgame KRB-KRN} 32. Ra7 {[%emt 0:00:06] Against Bb7+} Rc2 {[%emt 0:00:30]} 33. b4 {[%emt 0:05:45][%cal Bb2b4,Bb4b5][%mdl 32]} Kg6 {[%emt 0:01:09]} 34. a4 {[%emt 0:01:11]} bxa4 {[%emt 0:01:20]} 35. b5 {[%emt 0:00:14]} Kf6 {[%emt 0:03:14]} 36. Nxc8 {[%emt 0:03:27]} Rxc8 {[%emt 0:00:01]} 37. Rxa4 {[%emt 0:00:07] KR-KR} Rb8 {[%emt 0:00:03]} 38. Rb4 {[%emt 0:00:06]} Rb6 {[%emt 0:00:01]} 39. Kf3 {[%emt 0:00:21]} Ke5 {[%emt 0:00:08]} 40. h4 {[%emt 0:02:55]} g6 {[%emt 0:02:51]} 41. Ke3 {[%emt 0:35:25]} h5 {[%emt 0:35:31]} (41... Kd5 {is a better defense.} 42. Rd4+ Ke5) 42. Rb2 {[%emt 0:03:30]} Kd5 {[%emt 0:44:19] Weighted Error Value: White=0.08 (flawless) /Black=0.27 (precise)} 1-0